bitfinex/quotes_ETHUSD_20250702
["timestamp","ask_amount","ask_price","bid_price","bid_amount"]
[1751469318089,0.02,2498.8,2498.7,0.2]
[1751469319962,0.02,2498.8,2498.7,8.413]
[1751469320192,0.02,2498.8,2497.9,3.075]
[1751469320395,1.2605,2498.6,2497.9,3.075]
[1751469320665,3.12605,2498.5,2497.9,3.075]
[1751469320870,0.2,2498.5,2498.0,8.413]
[1751469321091,1.2605,2498.6,2498.0,8.213]
[1751469321296,1.2605,2498.6,2498.3,0.2]
[1751469321491,1.2605,2498.6,2498.0,8.213]
[1751469321674,1.2605,2498.6,2498.5,0.2]
[1751469321853,1.2605,2498.6,2498.0,8.213]
[1751469322059,1.2605,2498.6,2498.3,0.2]
[1751469322693,1.2605,2498.6,2497.4,3.011]
[1751469322991,4.002736,2498.3,2497.1,3.011]
[1751469323174,4.002736,2498.3,2497.6,0.2]
[1751469323175,0.2,2498.0,2497.6,0.2]
[1751469323560,30.0,2498.3,2497.3,8.211]
[1751469323756,4.21332424,2498.2,2497.7,0.2]
[1751469323981,0.2,2498.2,2497.7,0.2]
[1751469325014,4.5528182,2498.3,2497.4,8.21]
[1751469325295,30.0,2497.8,2497.1,3.011]
[1751469325504,40.0,2497.6,2497.2,0.2]
[1751469325662,0.2,2497.7,2496.9,8.209]
[1751469325861,0.2,2497.7,2497.3,0.2]
[1751469326274,1.3527,2497.9,2497.6,0.2]
[1751469326771,2.54508824,2497.9,2497.6,0.2]
[1751469327092,30.0,2497.7,2497.3,0.2]
[1751469327508,30.0,2497.6,2497.2,0.2]
[1751469327677,3.02,2497.6,2497.2,0.2]
[1751469327882,30.0,2497.6,2497.2,0.2]
[1751469328093,0.2,2497.7,2497.2,0.2]
[1751469328311,4.00416143,2497.5,2497.2,0.2]
[1751469328607,0.37182833,2497.4,2496.7,0.01]
[1751469328807,0.37182833,2497.5,2496.7,0.01]
[1751469329798,0.37182833,2497.5,2496.8,4.00510696]
[1751469329994,1.3034,2497.6,2496.7,4.01520269]
[1751469330414,1.3034,2497.6,2496.8,4.00510968]
[1751469330706,0.37182833,2497.8,2496.9,1.2628]
[1751469330906,0.37182833,2497.9,2496.9,1.2628]
[1751469331104,30.0,2498.2,2497.4,4.00409319]
[1751469331306,0.37182833,2498.1,2497.4,4.00409319]
[1751469331515,0.37182833,2498.0,2497.4,4.00409319]
[1751469331834,0.37182833,2497.9,2497.5,4.00398599]
[1751469332111,0.37182833,2497.8,2497.4,4.80499932]
[1751469332309,0.37182833,2498.2,2497.2,4.00448502]
[1751469332478,0.37182833,2498.1,2497.1,8.205]
[1751469332679,0.37182833,2498.0,2497.1,12.20964176]
[1751469332878,0.37182833,2497.9,2497.2,4.00447005]
[1751469333107,0.37182833,2497.8,2496.9,1.2628]
[1751469333298,0.37182833,2497.7,2496.9,1.2628]
[1751469333819,0.37182833,2497.7,2496.9,9.4658]
[1751469334034,0.37182833,2497.6,2496.9,9.4658]
[1751469334336,0.02,2497.8,2496.9,9.4658]
[1751469334337,0.37182833,2497.7,2497.2,4.00439685]
[1751469334625,0.37182833,2497.7,2497.3,4.00432467]
[1751469334792,0.37182833,2497.7,2497.2,0.40043969]
[1751469334793,0.37182833,2497.7,2497.2,4.40483274]
[1751469334989,0.02,2497.8,2497.2,4.40483274]
[1751469334990,0.02,2497.8,2497.3,4.0042372]
[1751469335195,0.02,2497.8,2497.3,4.00424606]
[1751469335494,0.02,2497.8,2497.2,0.40043969]
[1751469335701,0.02,2497.8,2497.4,4.00415561]
[1751469335925,0.02,2497.8,2497.7,4.00368338]
[1751469336222,0.02,2497.8,2497.5,11.213]
[1751469336391,0.02,2497.8,2497.6,4.00384286]
[1751469336592,0.02,2497.8,2497.5,4.00390941]
[1751469336789,0.02,2497.8,2497.4,16.5838768]
[1751469337013,0.02,2497.8,2497.6,4.00380545]
[1751469337337,0.02,2497.8,2497.7,4.00368338]
[1751469337700,0.02,2497.8,2497.4,12.5798]
[1751469338130,0.02,2497.8,2497.4,9.5658]
[1751469338334,0.02,2497.8,2497.2,4.00440495]
[1751469338494,0.02,2497.8,2497.7,0.2]
[1751469339704,0.02,2497.8,2497.7,4.20368338]
[1751469340424,0.02,2497.8,2497.7,5.15384479]
[1751469341433,0.02,2498.8,2497.7,5.15384479]
[1751469341434,0.37281088,2498.4,2498.3,5.25742185]
[1751469341634,0.37281088,2498.4,2498.3,13.45042185]
[1751469341930,0.37281088,2498.4,2498.3,9.6477]
[1751469343731,0.02,2498.8,2498.3,8.393]
[1751469343932,0.37313216,2498.7,2498.4,8.189]
[1751469344131,0.37313216,2498.6,2498.4,8.189]
[1751469344435,0.37313216,2498.5,2498.4,8.189]
[1751469344929,0.37313216,2498.5,2498.4,8.389]
[1751469345501,0.37313216,2498.5,2498.4,12.39156163]
[1751469345721,0.37313216,2498.5,2498.4,12.99119118]
[1751469345922,0.37313216,2498.5,2498.4,8.98862955]
[1751469346322,0.37309547,2498.7,2498.6,4.00224125]
[1751469346636,0.37309547,2498.7,2498.6,4.95240266]
[1751469346832,0.37309547,2498.7,2498.6,5.15240266]
[1751469347439,0.37309547,2498.7,2498.6,0.2]
[1751469347936,0.02,2498.8,2498.6,0.2]
[1751469349139,0.39309547,2498.8,2498.6,0.2]
[1751469349332,0.37309547,2498.7,2498.6,0.2]
[1751469349641,0.02,2498.8,2498.6,0.2]
[1751469350139,0.02,2498.8,2498.7,4.00208108]
[1751469350344,0.02,2498.8,2498.6,6.31663796]
[1751469350637,0.02,2498.8,2498.6,6.31673285]
[1751469350843,0.02,2498.8,2498.6,2.3145]
[1751469351039,0.02,2498.8,2498.6,1.4761]
[1751469351529,0.02,2498.8,2498.6,0.2]
[1751469352925,0.02,2498.8,2498.7,4.00208108]
[1751469354348,0.02,2498.8,2498.7,5.37348108]
[1751469357454,0.02,2498.8,2498.7,16.53148108]
[1751469358846,0.02,2499.4,2499.3,5.27032031]
[1751469359031,0.02,2499.4,2499.3,13.43532031]
[1751469359949,1e-08,2499.4,2499.3,13.43532031]
[1751469360322,0.37232717,2500.7,2499.9,4.00016]
[1751469360524,24.58054638,2502.8,2499.9,16.42136]
[1751469360525,1.3667,2501.0,2499.9,16.42136]
[1751469361142,1.3667,2501.0,2499.4,4.00086735]
[1751469361345,0.37229894,2500.9,2499.9,2.988]
[1751469361559,0.37229894,2500.8,2499.6,1.2692]
[1751469361773,1.3667,2500.3,2499.4,2.988]
[1751469361937,1.3667,2500.3,2499.5,8.158]
[1751469362469,1.3667,2500.3,2499.7,4.00036821]
[1751469362765,1.3667,2500.3,2499.8,8.157]
[1751469362946,1.3667,2500.3,2499.9,8.157]
[1751469364561,1.3223,2501.1,2499.9,23.53465254]
[1751469364722,1.3223,2501.1,2500.5,3.99909686]
[1751469364929,1.3223,2501.1,2500.6,11.141]
[1751469365136,1.3223,2501.1,2500.6,15.14003709]
[1751469365548,1.71408323,2501.5,2500.6,12.502]
[1751469365748,1.3423,2501.5,2501.0,3.99838877]
[1751469365948,1.3423,2501.8,2501.1,12.14911244]
[1751469366151,1.3423,2501.8,2501.3,3.99780125]
[1751469366345,1.3423,2501.8,2501.4,8.15]
[1751469366960,1.3671,2502.3,2501.4,8.15]
[1751469367828,1.3671,2502.3,2501.0,1.3146]
[1751469368050,40.0,2501.9,2501.1,11.132]
[1751469368259,1.3214,2501.8,2500.8,2.987]
[1751469368557,30.0,2501.8,2500.9,8.144]
[1751469368764,1.2475,2501.5,2501.2,0.1992]
[1751469368928,30.0,2501.4,2501.1,0.1992]
[1751469369360,1.4467,2501.5,2501.1,0.1992]
[1751469369761,1.81706568,2501.5,2501.1,0.1992]
[1751469369968,1.3162,2501.3,2500.9,8.142]
[1751469370131,1.5154,2501.3,2500.9,8.142]
[1751469370463,1.5154,2501.3,2500.9,8.141]
[1751469370653,1.5154,2501.3,2500.1,3.99978263]
[1751469370654,1.3162,2501.3,2500.4,3.99934893]
[1751469370852,1.547,2501.1,2500.6,0.1992]
[1751469371187,3.1547,2501.0,2499.7,1.3782]
[1751469371333,41.3478,2500.7,2499.8,8.138]
[1751469371533,0.1992,2500.5,2500.1,0.1992]
[1751469372271,1.3478,2500.7,2499.8,8.138]
[1751469372431,1.3478,2500.7,2500.3,0.1992]
[1751469372628,1.7185321,2500.7,2500.3,0.1992]
[1751469372832,0.37074369,2500.6,2500.3,8.3362]
[1751469373034,1.71854369,2500.7,2500.6,0.1992]
[1751469373270,1.3478,2500.7,2500.6,0.1992]
[1751469373634,1.3478,2500.7,2500.3,0.1992]
[1751469373833,1.3478,2500.7,2500.3,8.3342]
[1751469374263,2.5025,2500.7,2500.3,8.3342]
[1751469374454,1.3478,2500.7,2500.3,0.1992]
[1751469374632,30.0,2500.6,2499.7,8.133]
[1751469374834,30.0,2500.2,2499.5,9.611]
[1751469375032,30.0,2500.2,2499.5,17.743]
[1751469375275,1.3284,2500.3,2499.5,8.132]
[1751469375434,1.3284,2500.3,2499.5,12.13273005]
[1751469375640,1.3284,2500.3,2499.5,8.132]
[1751469376373,2.49836118,2500.3,2499.7,4.00040343]
[1751469376532,1.3284,2500.3,2499.6,4.00055121]
[1751469376735,1.3284,2500.3,2499.6,5.3043401]
[1751469376970,1.3284,2500.3,2499.6,1.3037]
[1751469377136,1.3284,2500.3,2499.5,8.132]
[1751469377334,1.3284,2500.3,2499.0,1.3784]
[1751469377547,2.46124,2500.3,2499.1,15.11642712]
[1751469377754,1.3284,2500.3,2499.1,15.11634358]
[1751469377953,1.3284,2500.3,2499.6,4.00053417]
[1751469378180,1.3284,2500.3,2499.7,8.127]
[1751469378339,1.3284,2500.3,2499.1,6.98841894]
[1751469378539,1.3284,2500.3,2499.7,4.00044175]
[1751469378739,1.3326,2500.6,2499.8,12.12628335]
[1751469378953,1.3326,2500.6,2499.9,4.00008392]
[1751469379183,1.3326,2500.6,2499.8,12.12628335]
[1751469379184,1.70425656,2500.6,2500.1,3.99969932]
[1751469379386,0.37165656,2500.5,2500.2,3.99968002]
[1751469379558,0.37165656,2500.9,2500.3,8.124]
[1751469379764,0.37165656,2500.9,2500.4,3.99927864]
[1751469379977,0.37165656,2500.9,2500.3,8.124]
[1751469380150,1.3022,2501.8,2501.1,3.99823023]
[1751469380484,0.37165656,2501.7,2501.2,8.123]
[1751469380783,0.37165656,2501.6,2501.2,12.12100898]
[1751469380982,0.37165656,2501.5,2501.2,12.12100898]
[1751469381282,0.37165656,2501.4,2501.2,12.12103527]
[1751469381451,0.37165656,2501.3,2501.2,8.123]
[1751469382489,0.37165656,2501.3,2500.9,2.987]
[1751469382784,0.37165656,2501.6,2500.9,2.987]
[1751469382985,0.37165656,2501.5,2500.9,2.987]
[1751469383287,3.14665925,2501.7,2500.9,2.987]
[1751469383288,0.37165656,2501.4,2500.9,2.987]
[1751469383487,0.37165656,2501.3,2500.9,2.987]
[1751469383650,0.37165656,2501.2,2500.9,2.987]
[1751469383857,0.37165656,2501.6,2500.9,2.987]
[1751469384051,0.37165656,2501.5,2500.9,2.987]
[1751469384287,0.37165656,2501.4,2500.9,11.101]
[1751469384484,0.37165656,2501.3,2500.9,11.101]
[1751469384684,0.37165656,2501.2,2501.0,3.99836591]
[1751469384999,0.37165656,2501.6,2501.2,0.1992]
[1751469385157,0.37165656,2501.5,2501.2,0.1992]
[1751469385357,0.37165656,2501.4,2501.0,5.29812843]
[1751469385557,0.37165656,2501.3,2500.9,11.101]
[1751469385870,0.37165656,2501.6,2501.3,0.1992]
[1751469386193,0.37165656,2501.5,2501.3,0.1992]
[1751469386393,0.37165656,2501.4,2501.3,0.1992]
[1751469387864,0.37165656,2501.4,2500.9,2.987]
[1751469388059,0.37165656,2501.3,2500.9,11.092]
[1751469388299,0.37165656,2501.2,2500.9,11.092]
[1751469388504,0.37280356,2501.6,2501.2,0.1992]
[1751469388676,0.37280356,2501.5,2500.9,15.09051604]
[1751469388872,0.01,2501.7,2501.4,0.1992]
[1751469389071,0.37278277,2501.6,2501.4,0.1992]
[1751469389286,0.3727825,2501.5,2501.4,0.1992]
[1751469391398,30.0,2501.4,2501.1,0.1992]
[1751469391593,4.77388075,2501.3,2501.1,0.1992]
[1751469391893,0.3727825,2501.2,2501.1,0.1992]
[1751469392056,0.3727825,2501.4,2501.1,0.1992]
[1751469392395,0.3727825,2501.3,2501.1,0.1992]
[1751469392604,0.3727825,2501.2,2501.1,0.1992]
[1751469392760,0.3727825,2501.4,2501.1,0.1992]
[1751469392960,0.3727825,2501.3,2501.1,0.1992]
[1751469393162,0.3727825,2501.2,2501.1,0.1992]
[1751469393358,0.3727825,2501.2,2500.8,8.093]
[1751469393591,0.3727825,2501.1,2500.9,0.1992]
[1751469393788,0.3727825,2501.0,2500.9,0.1992]
[1751469393998,0.3727825,2501.3,2501.0,0.1992]
[1751469394195,0.3727825,2501.2,2501.0,0.1992]
[1751469394396,0.3727825,2501.1,2501.0,0.1942]
[1751469396492,0.3727825,2501.4,2501.0,0.1942]
[1751469396703,0.3727825,2501.3,2501.0,0.1942]
[1751469396868,0.3727825,2501.2,2501.0,0.1942]
[1751469397068,0.3727825,2501.1,2501.0,0.1942]
[1751469399991,0.3727825,2501.1,2500.6,8.083]
[1751469400192,0.3727825,2501.0,2500.9,0.1992]
[1751469400594,11.3382,2500.8,2500.4,0.1992]
[1751469400798,31.3382,2500.5,2499.9,2.952]
[1751469400997,31.3382,2500.5,2499.3,1.3826]
[1751469400998,1.8882,2500.3,2499.3,2.952]
[1751469401180,1.3382,2500.3,2499.3,2.952]
[1751469401505,0.37347012,2500.3,2499.6,1.3334]
[1751469401705,0.37347231,2500.5,2499.6,9.9448299]
[1751469401909,0.37347231,2500.4,2499.6,9.9448299]
[1751469402206,0.37347231,2500.5,2499.6,13.94538767]
[1751469402595,1.3011,2500.6,2499.6,13.94538157]
[1751469402912,1.3011,2500.6,2499.7,5.01483666]
[1751469403211,0.37347231,2500.5,2499.7,1.01436106]
[1751469403408,0.37347231,2500.4,2500.1,3.99975421]
[1751469403598,0.37347231,2500.3,2500.2,8.071]
[1751469403773,0.37347231,2500.9,2500.2,8.071]
[1751469403973,1.2695,2501.0,2500.2,8.071]
[1751469403974,0.37347231,2500.8,2500.2,8.071]
[1751469404170,1.2695,2501.0,2500.2,8.071]
[1751469404171,0.37347231,2500.7,2500.2,8.071]
[1751469404371,0.37347231,2500.6,2500.2,8.071]
[1751469404602,0.37347231,2500.5,2500.2,8.071]
[1751469404784,30.0,2500.8,2500.2,8.071]
[1751469404983,0.37347231,2500.7,2500.2,8.071]
[1751469405180,0.37347231,2500.6,2500.2,8.071]
[1751469405384,0.37347231,2500.5,2500.2,8.071]
[1751469405585,0.37347231,2500.9,2500.2,8.071]
[1751469405788,0.37347231,2500.8,2500.2,8.071]
[1751469405994,1.16429723,2500.9,2500.2,8.071]
[1751469405995,0.37347231,2500.7,2500.2,8.071]
[1751469406173,1.16429723,2500.9,2500.2,8.071]
[1751469406174,0.64297231,2501.0,2500.2,8.071]
[1751469406373,4.64152294,2501.0,2500.2,8.071]
[1751469406608,30.0,2500.8,2500.2,8.071]
[1751469406792,30.0,2500.8,2499.9,2.953]
[1751469407790,30.0,2500.7,2499.9,2.953]
[1751469407988,30.0,2500.6,2499.9,2.953]
[1751469408192,40.0,2500.4,2500.0,0.02]
[1751469408391,30.0,2500.4,2500.0,0.02]
[1751469408589,40.0,2500.2,2500.0,0.02]
[1751469408796,30.0,2500.4,2500.0,0.02]
[1751469409204,0.8993,2500.3,2500.0,0.02]
[1751469410586,1.0985,2500.3,2500.0,0.02]
[1751469411079,1.10985,2500.2,2500.0,0.02]
[1751469411285,30.0,2500.2,2500.0,0.02]
[1751469411494,1.0985,2500.3,2500.0,0.02]
[1751469414118,10.8993,2500.6,2500.0,0.02]
[1751469414284,0.1992,2500.5,2500.0,0.2192]
[1751469414722,10.8993,2500.4,2500.0,0.2192]
[1751469415024,40.55,2500.1,2500.0,0.02]
[1751469415196,41.4493,2500.1,2500.0,0.02]
[1751469415400,45.44914,2500.1,2500.0,0.02]
[1751469416123,41.4493,2500.1,2500.0,0.02]
[1751469416329,15.46262424,2500.1,2500.0,0.02]
[1751469417326,49.46246424,2500.1,2500.0,0.02]
[1751469419063,45.46262424,2500.1,2500.0,0.02]
[1751469419354,49.46246424,2500.1,2500.0,0.02]
[1751469420460,10.0,2499.6,2499.5,0.02]
[1751469420617,35.4499401,2499.6,2499.5,0.02]
[1751469420941,22.03551103,2499.7,2499.0,0.02]
[1751469420942,45.45074051,2499.1,2499.0,0.02]
[1751469421110,63.84130842,2499.1,2499.0,0.02]
[1751469422448,33.84130842,2499.1,2499.0,0.02]
[1751469422690,33.84130842,2499.1,2498.5,0.02]
[1751469422691,55.50593379,2498.6,2498.5,0.02]
[1751469422958,55.50593379,2498.6,2498.3,0.02]
[1751469422959,4.55256163,2498.4,2498.3,0.02]
[1751469423254,56.39386163,2498.4,2498.3,0.02]
[1751469423458,30.0,2497.8,2497.3,0.2]
[1751469423741,8.229,2497.9,2497.0,1.259]
[1751469423975,10.55,2497.7,2497.4,0.2]
[1751469424253,0.2,2497.5,2497.0,0.2]
[1751469424751,0.8993,2498.0,2496.9,1.335]
[1751469425054,0.2,2498.0,2497.6,0.2]
[1751469425631,0.2,2498.2,2497.6,0.2]
[1751469425833,10.2,2498.2,2497.6,0.2]
[1751469426007,0.2,2498.2,2497.5,1.335]
[1751469426209,0.2,2498.2,2497.8,0.2]
[1751469426608,0.2,2498.0,2497.6,0.2]
[1751469428246,18.021,2498.4,2497.5,1.335]
[1751469428450,0.2,2498.2,2497.7,0.2]
[1751469429136,8.019,2498.8,2497.5,1.335]
[1751469429361,0.2,2498.7,2498.1,0.2]
[1751469430222,0.2,2498.7,2498.2,1.3769]
[1751469430551,1.0993,2498.9,2498.4,0.2]
[1751469430736,30.0,2498.8,2498.2,1.3769]
[1751469430925,3.28993,2498.7,2498.2,1.5769]
[1751469431125,0.2,2498.7,2498.2,1.5769]
[1751469431325,0.2,2498.8,2498.4,0.2]
[1751469431555,0.2,2498.8,2497.6,2.912]
[1751469431556,0.2,2498.7,2498.2,0.2]
[1751469431757,10.0,2498.6,2497.9,1.3769]
[1751469431967,0.2,2498.4,2498.0,0.2]
[1751469432134,0.2,2498.4,2497.3,4.00428508]
[1751469432135,0.8993,2498.3,2497.5,0.01]
[1751469432338,0.2,2498.2,2497.7,0.2]
[1751469433041,0.2,2498.2,2497.7,0.2]
[1751469435969,10.0,2498.5,2497.6,1.3484]
[1751469436140,10.2,2498.5,2498.1,0.2]
[1751469436347,0.2,2498.5,2498.1,0.2]
[1751469436676,10.0,2498.6,2498.2,0.2]
[1751469436878,0.2,2498.7,2498.2,0.2]
[1751469437174,0.2,2498.7,2498.2,1.5484]
[1751469437529,30.0,2499.3,2498.2,5.351207]
[1751469437846,8.8983,2499.4,2498.5,0.2]
[1751469437847,0.2,2499.0,2498.5,0.2]
[1751469438875,30.0,2498.9,2498.2,1.3484]
[1751469439165,30.0,2498.9,2498.3,0.2]
[1751469439166,0.2,2498.7,2498.3,0.2]
[1751469439670,30.0,2498.6,2497.9,1.3247]
[1751469439833,30.0,2498.3,2497.9,0.2]
[1751469440037,30.0,2498.3,2497.6,1.3247]
[1751469440038,30.0,2498.2,2497.6,1.3247]
[1751469440241,0.2,2498.1,2497.7,0.2]
[1751469440973,5.913,2498.5,2497.6,1.3247]
[1751469440974,3.2,2498.5,2498.0,0.2]
[1751469441160,0.2,2498.5,2498.0,0.2]
[1751469442541,30.0,2498.4,2498.0,0.2]
[1751469442741,30.0,2498.4,2497.6,1.3247]
[1751469442941,0.2,2498.3,2497.9,0.2]
[1751469443172,10.0,2498.4,2497.6,1.3247]
[1751469443453,0.2,2498.2,2497.7,0.2]
[1751469446768,0.2,2498.2,2497.6,1.3247]
[1751469446769,0.2,2497.9,2497.6,1.3247]
[1751469447473,0.2,2497.9,2497.5,0.21]
[1751469447796,0.2,2497.7,2497.5,0.01]
[1751469447953,0.37393499,2497.6,2497.5,0.01]
[1751469448351,0.37395937,2497.6,2497.5,0.01]
[1751469448739,1.27375937,2497.6,2497.5,0.01]
[1751469448940,0.37395937,2497.6,2497.5,0.01]
[1751469451439,0.37395937,2497.6,2497.5,1.2797]
[1751469451781,0.37395937,2497.6,2497.5,1.4797]
[1751469451940,0.37395937,2497.6,2497.5,0.21]
[1751469452141,0.37395937,2497.6,2497.5,0.01]
[1751469453846,0.37395937,2497.6,2497.5,0.21]
[1751469454708,0.37411633,2497.6,2497.5,0.01]
[1751469456411,0.37411633,2497.6,2497.5,1.3688]
[1751469456577,8.32811633,2498.3,2497.5,1.3688]
[1751469456776,12.29890796,2498.2,2497.5,1.3688]
[1751469456994,0.37411633,2498.1,2497.5,1.3688]
[1751469457304,0.37411633,2498.0,2497.5,1.3688]
[1751469457605,0.37411633,2497.9,2497.5,1.3688]
[1751469457915,0.37411633,2498.1,2497.7,1.3483]
[1751469458098,0.02,2498.4,2497.9,1.3483]
[1751469458099,0.37411633,2498.3,2497.9,1.3483]
[1751469458416,0.02,2498.4,2498.2,1.3483]
[1751469458790,0.02,2498.4,2498.3,4.00272185]
[1751469459002,0.02,2498.4,2498.3,1.2653]
[1751469459315,0.02,2498.4,2498.3,6.19512742]
[1751469459513,0.37411633,2499.2,2498.4,1.2653]
[1751469459711,0.02,2499.3,2498.5,2.867]
[1751469460012,0.02,2499.3,2499.1,1.2653]
[1751469461680,0.02,2499.3,2499.1,5.26665988]
[1751469461886,0.02,2499.3,2499.2,0.92682207]
[1751469462084,0.02,2499.3,2499.1,5.26665988]
[1751469462282,0.02,2499.3,2499.1,1.2653]
[1751469462795,0.02,2499.3,2499.1,5.26673492]
[1751469462994,0.02,2499.3,2499.1,1.2653]
[1751469463716,0.02,2499.3,2499.2,4.0012804]
[1751469463886,0.02,2499.3,2499.1,5.26665422]
[1751469464086,0.02,2499.3,2499.2,4.0012804]
[1751469464282,0.02,2499.3,2499.1,5.26671538]
[1751469464283,0.02,2499.3,2499.1,1.2653]
[1751469464505,0.02,2499.3,2499.2,0.2]
[1751469464906,0.02,2499.3,2499.2,0.74668578]
[1751469465403,0.02,2499.3,2499.2,0.2]
[1751469468597,0.02,2499.3,2499.2,4.2012804]
[1751469470513,0.02,2499.3,2499.2,0.2]
[1751469470720,0.02,2499.3,2499.2,4.2012804]
[1751469471715,0.02,2499.3,2499.2,5.5833804]
[1751469472215,0.02,2499.3,2499.2,6.54185319]
[1751469474199,0.02,2499.3,2499.2,17.30785319]
[1751469479337,0.02,2499.3,2499.2,6.54185319]
[1751469479636,0.02,2499.3,2499.2,17.24385319]
[1751469480238,0.02,2499.3,2499.2,16.2813804]
[1751469480642,0.02,2499.3,2499.2,5.5833804]
[1751469481138,0.02,2499.3,2499.2,13.4653804]
[1751469481504,0.02,2499.7,2499.6,5.2622401]
[1751469481739,0.02,2499.7,2499.6,13.3422401]
[1751469482540,0.02,2501.2,2500.7,3.99879114]
[1751469482728,0.02,2501.2,2500.3,1.36]
[1751469482917,0.02,2501.2,2500.4,7.876]
[1751469483447,0.02,2501.2,2500.5,3.99910445]
[1751469483647,0.02,2501.2,2500.4,7.876]
[1751469483816,0.02,2501.2,2500.4,11.87528323]
[1751469484011,0.02,2501.2,2500.5,3.99920015]
[1751469484325,0.02,2501.2,2500.4,11.87529867]
[1751469484644,0.02,2501.2,2500.4,7.876]
[1751469485040,0.02,2501.2,2499.9,4.00003854]
[1751469485041,0.9239,2500.9,2500.2,2.814]
[1751469485245,0.9239,2500.9,2500.5,7.87]
[1751469485550,0.9239,2500.9,2500.2,2.814]
[1751469485551,13.98692796,2500.8,2500.2,2.814]
[1751469485738,0.9239,2500.6,2500.2,2.814]
[1751469486221,0.9239,2500.5,2500.2,2.814]
[1751469486423,0.9239,2500.4,2499.3,1.336]
[1751469486758,0.9239,2500.4,2499.4,10.679]
[1751469487312,0.9239,2500.4,2499.5,4.00072625]
[1751469487516,2.05350782,2500.4,2499.4,14.67987755]
[1751469487744,0.37217816,2500.3,2499.4,10.679]
[1751469487917,0.37217816,2500.3,2499.6,4.00055638]
[1751469488118,0.9239,2500.4,2499.6,4.00055638]
[1751469488345,0.9239,2500.4,2499.6,4.00063972]
[1751469489044,0.9239,2500.4,2499.6,1.2988]
[1751469489244,0.9239,2500.4,2499.4,10.679]
[1751469489839,0.9239,2500.4,2499.3,1.2988]
[1751469490219,0.9239,2500.4,2499.5,4.00071375]
[1751469490859,0.9239,2500.4,2499.5,4.00080016]
[1751469491028,0.9239,2500.4,2499.6,4.00049611]
[1751469491228,0.9239,2500.4,2499.4,10.669]
[1751469491533,0.9239,2500.4,2499.4,14.66986735]
[1751469491757,0.9239,2500.4,2499.4,10.669]
[1751469492152,0.49231411,2500.3,2499.4,10.669]
[1751469492376,0.49231411,2500.3,2499.9,0.2]
[1751469492377,0.9239,2500.2,2499.9,0.2]
[1751469493190,0.37359979,2500.1,2499.9,0.2]
[1751469493975,0.37359979,2500.1,2499.5,13.14008427]
[1751469494148,1.29749979,2500.2,2500.0,0.1992]
[1751469494347,0.37359979,2500.1,2500.0,0.1992]
[1751469495957,1.29749979,2500.2,2500.0,0.1992]
[1751469496342,0.37359979,2500.1,2499.5,9.1394]
[1751469496548,0.02,2500.3,2500.1,3.99972755]
[1751469496874,0.02,2500.3,2500.1,7.838]
[1751469497077,0.02,2500.3,2500.2,3.99968002]
[1751469500163,0.02,2500.3,2500.1,11.9]
[1751469500351,0.02,2500.3,2500.2,7.827]
[1751469500656,0.02,2500.3,2499.6,4.00059473]
[1751469500657,0.02,2500.3,2499.5,1.3397]
[1751469500844,0.02,2500.3,2499.6,2.814]
[1751469501045,0.925,2500.2,2499.6,10.639]
[1751469501550,0.925,2500.2,2499.7,7.824]
[1751469502979,0.02,2500.3,2499.7,7.824]
[1751469503278,0.02,2500.3,2500.1,3.99968375]
[1751469503479,0.02,2500.3,2500.2,7.82]
[1751469503680,0.02,2500.3,2500.2,11.81968002]
[1751469504384,0.02,2500.3,2500.2,13.18288002]
[1751469506352,0.02,2500.3,2500.2,13.38208002]
[1751469507453,0.02,2500.3,2500.2,5.56208002]
[1751469507901,0.02,2500.3,2500.2,0.1992]
[1751469508099,0.02,2500.3,2500.2,8.0062]
[1751469508253,0.02,2500.3,2500.2,0.1992]
[1751469508453,0.02,2500.3,2500.2,8.0042]
[1751469509651,0.02,2500.3,2500.2,0.1992]
[1751469509856,0.02,2500.3,2500.2,8.0022]
[1751469510152,0.945,2500.3,2500.2,8.0002]
[1751469510681,0.945,2500.3,2500.2,7.9982]
[1751469515782,0.02,2500.3,2500.2,7.9982]
[1751469517677,0.02,2500.3,2500.0,0.01]
[1751469517890,0.945,2500.3,2500.0,7.79]
[1751469519214,0.945,2500.3,2500.0,0.01]
[1751469519381,0.945,2500.3,2500.1,7.778]
[1751469519985,0.02,2500.3,2500.1,7.778]
[1751469521003,0.02,2500.3,2500.2,3.99968002]
[1751469522184,0.02,2500.3,2500.1,12.55657002]
[1751469523513,0.02,2500.3,2500.2,3.99968002]
[1751469524014,0.02,2500.3,2500.1,12.55655676]
[1751469524318,0.02,2500.3,2500.2,3.99968002]
[1751469524502,0.02,2500.3,2500.1,12.55654725]
[1751469524703,0.02,2500.3,2500.2,0.77099096]
[1751469525524,0.02,2500.3,2500.2,4.77067098]
[1751469527814,0.02,2500.3,2500.2,4.96987098]
[1751469528384,0.02,2500.3,2500.2,6.25757098]
[1751469530391,0.01,2501.0,2500.9,5.36146051]
[1751469530613,0.01,2501.0,2500.9,15.87046051]
[1751469531026,0.01,2501.0,2500.9,15.86946051]
[1751469531412,0.02,2501.2,2501.1,3.99824077]